[Event "Late-Titled-Tuesday-Blitz-June-04-2024"]
[Site "Chess.com"]
[Date "2024.06.04"]
[Round "10"]
[White "EsmeraldasAnderson03"]
[Black "Likvidator228"]
[Result "1-0"]
[WhiteElo "2487"]
[BlackElo "2586"]
[TimeControl "180+1"]
[EndTime "15:54:05 PDT"]
[Termination "EsmeraldasAnderson03 won by resignation"]

1. d4 {[%clk 0:03:00.9]} 1... Nf6 {[%clk 0:02:58.9]} 2. c4 {[%clk 0:03:01.3]}
2... e6 {[%clk 0:02:59.3]} 3. Nc3 {[%clk 0:03:01.5]} 3... d5 {[%clk 0:02:59.7]}
4. cxd5 {[%clk 0:03:01.4]} 4... exd5 {[%clk 0:02:59.9]} 5. Bg5 {[%clk 0:03:02]}
5... c6 {[%clk 0:02:59.9]} 6. Qc2 {[%clk 0:03:02.3]} 6... Be7 {[%clk 0:02:59.7]}
7. e3 {[%clk 0:03:02.8]} 7... O-O {[%clk 0:03:00.1]} 8. Bd3 {[%clk 0:03:03.1]}
8... Nbd7 {[%clk 0:02:58.8]} 9. Nf3 {[%clk 0:03:03.1]} 9... Re8 {[%clk 0:02:59]}
10. O-O {[%clk 0:03:03]} 10... h6 {[%clk 0:02:58.6]} 11. Bh4 {[%clk 0:03:02.8]}
11... Ne4 {[%clk 0:02:58.7]} 12. Bxe7 {[%clk 0:03:01.7]} 12... Qxe7 {[%clk
0:02:58.8]} 13. Rab1 {[%clk 0:03:01.7]} 13... a5 {[%clk 0:02:58.3]} 14. a3
{[%clk 0:03:01.7]} 14... Nxc3 {[%clk 0:02:51.9]} 15. Qxc3 {[%clk 0:03:01.1]}
15... Nf6 {[%clk 0:02:50.8]} 16. b4 {[%clk 0:03:01.1]} 16... axb4 {[%clk
0:02:50.5]} 17. axb4 {[%clk 0:03:02]} 17... Ne4 {[%clk 0:02:44.6]} 18. Bxe4
{[%clk 0:03:00.9]} 18... dxe4 {[%clk 0:02:43.2]} 19. Ne5 {[%clk 0:03:01]} 19...
f6 {[%clk 0:02:36.6]} 20. Nc4 {[%clk 0:02:43.4]} 20... Be6 {[%clk 0:02:33.9]}
21. Rfc1 {[%clk 0:02:38]} 21... Ra2 {[%clk 0:02:12.8]} 22. Rb2 {[%clk
0:02:30.7]} 22... Rea8 {[%clk 0:02:11.6]} 23. Nb6 {[%clk 0:02:27.5]} 23... Rxb2
{[%clk 0:02:09.7]} 24. Qxb2 {[%clk 0:02:27.9]} 24... Ra2 {[%clk 0:02:09.1]} 25.
Qc3 {[%clk 0:02:28.3]} 25... Qd8 {[%clk 0:01:57.2]} 26. Nc4 {[%clk 0:02:26]}
26... Qd5 {[%clk 0:01:56.3]} 27. Nd2 {[%clk 0:02:22.5]} 27... f5 {[%clk
0:01:48.9]} 28. Nf1 {[%clk 0:02:20.4]} 28... Qb5 {[%clk 0:01:46.2]} 29. Ng3
{[%clk 0:02:18.6]} 29... Qd3 {[%clk 0:01:36.9]} 30. Qc5 {[%clk 0:02:12.9]} 30...
f4 {[%clk 0:01:08.4]} 31. Qe5 {[%clk 0:02:03.5]} 31... Bc4 {[%clk 0:00:58.5]}
32. Nf5 {[%clk 0:01:55.8]} 32... Kf7 {[%clk 0:00:49.5]} 33. Qxg7+ {[%clk
0:01:49]} 33... Ke6 {[%clk 0:00:49.7]} 34. Qe5+ {[%clk 0:01:49.2]} 34... Kf7
{[%clk 0:00:44.1]} 35. Nd6+ {[%clk 0:01:04]} 35... Kg8 {[%clk 0:00:38.6]} 36.
Qe8+ {[%clk 0:01:00]} 36... Kh7 {[%clk 0:00:33.5]} 37. Qd7+ {[%clk 0:00:52.4]}
37... Kg6 {[%clk 0:00:31.1]} 38. Qg4+ {[%clk 0:00:48.8]} 38... Kh7 {[%clk
0:00:31.3]} 39. Ne8 {[%clk 0:00:44.1]} 1-0

[Event "Late-Titled-Tuesday-Blitz-June-04-2024"]
[Site "Chess.com"]
[Date "2024.06.04"]
[Round "10"]
[White "Faqade"]
[Black "mac0504"]
[Result "1-0"]
[WhiteElo "2632"]
[BlackElo "2758"]
[TimeControl "180+1"]
[EndTime "15:54:19 PDT"]
[Termination "Faqade won by resignation"]

1. d4 {[%clk 0:03:00.9]} 1... Nf6 {[%clk 0:02:59.4]} 2. c4 {[%clk 0:02:59.9]}
2... g6 {[%clk 0:02:59.8]} 3. Nc3 {[%clk 0:02:59.5]} 3... Bg7 {[%clk 0:03:00.2]}
4. e4 {[%clk 0:02:59.8]} 4... d6 {[%clk 0:03:00.7]} 5. Be2 {[%clk 0:03:00.2]}
5... O-O {[%clk 0:03:00.8]} 6. Be3 {[%clk 0:03:00.6]} 6... c5 {[%clk 0:02:53.3]}
7. Nf3 {[%clk 0:02:59.3]} 7... cxd4 {[%clk 0:02:51.2]} 8. Nxd4 {[%clk
0:03:00.2]} 8... Nc6 {[%clk 0:02:50.4]} 9. f3 {[%clk 0:02:55.7]} 9... Bd7 {[%clk
0:02:50]} 10. O-O {[%clk 0:02:55]} 10... Nxd4 {[%clk 0:02:49.2]} 11. Bxd4 {[%clk
0:02:55.9]} 11... Bc6 {[%clk 0:02:49.8]} 12. b4 {[%clk 0:02:55.8]} 12... b6
{[%clk 0:02:45.7]} 13. Rc1 {[%clk 0:02:53]} 13... Rc8 {[%clk 0:02:45.3]} 14. Qd2
{[%clk 0:02:52.3]} 14... Nd7 {[%clk 0:02:36.3]} 15. a3 {[%clk 0:02:49.5]} 15...
h5 {[%clk 0:02:17.9]} 16. Kh1 {[%clk 0:02:47.1]} 16... Kh7 {[%clk 0:02:12.4]}
17. Nd5 {[%clk 0:02:36.9]} 17... Bxd5 {[%clk 0:02:10.9]} 18. cxd5 {[%clk
0:02:37.8]} 18... Bxd4 {[%clk 0:02:05.9]} 19. Qxd4 {[%clk 0:02:36.4]} 19... Rxc1
{[%clk 0:01:51.2]} 20. Rxc1 {[%clk 0:02:37.3]} 20... Nb8 {[%clk 0:01:51.5]} 21.
Qc3 {[%clk 0:02:28.5]} 21... Qd7 {[%clk 0:01:38.5]} 22. f4 {[%clk 0:01:53.6]}
22... Qa4 {[%clk 0:01:14]} 23. h3 {[%clk 0:01:49.8]} 23... Nd7 {[%clk
0:01:01.7]} 24. Bd1 {[%clk 0:01:43]} 24... Qa6 {[%clk 0:00:59.5]} 25. Bf3 {[%clk
0:01:36.9]} 25... Nf6 {[%clk 0:00:48.1]} 26. e5 {[%clk 0:01:36.1]} 26... Ng8
{[%clk 0:00:48.5]} 27. f5 {[%clk 0:01:29]} 27... Nh6 {[%clk 0:00:40]} 28. f6
{[%clk 0:01:28.2]} 28... exf6 {[%clk 0:00:35.4]} 29. exd6 {[%clk 0:01:28.2]}
29... Nf5 {[%clk 0:00:27.7]} 30. d7 {[%clk 0:01:20.3]} 30... Ng3+ {[%clk
0:00:15.6]} 31. Kh2 {[%clk 0:01:16]} 31... h4 {[%clk 0:00:16.2]} 32. Qxf6 {[%clk
0:01:12.9]} 32... Nf5 {[%clk 0:00:09.4]} 33. d8=Q {[%clk 0:01:05.3]} 33... Rxd8
{[%clk 0:00:09.9]} 34. Qxd8 {[%clk 0:01:05.8]} 34... Qxa3 {[%clk 0:00:07.7]} 35.
Rc7 {[%clk 0:00:58.8]} 35... Qe3 {[%clk 0:00:03.7]} 36. Rxf7+ {[%clk 0:00:56.9]}
36... Kh6 {[%clk 0:00:04.2]} 37. Qf8+ {[%clk 0:00:43.5]} 37... Kg5 {[%clk
0:00:03.9]} 38. Rxf5+ {[%clk 0:00:43.5]} 38... gxf5 {[%clk 0:00:04.5]} 39. Qg7+
{[%clk 0:00:42.1]} 39... Kf4 {[%clk 0:00:05]} 40. Qh6+ {[%clk 0:00:42.1]} 1-0

[Event "Late-Titled-Tuesday-Blitz-June-04-2024"]
[Site "Chess.com"]
[Date "2024.06.04"]
[Round "10"]
[White "gamboajp"]
[Black "fpawn"]
[Result "0-1"]
[WhiteElo "2116"]
[BlackElo "2430"]
[TimeControl "180+1"]
[EndTime "15:54:20 PDT"]
[Termination "fpawn won on time"]

1. c4 {[%clk 0:03:00.9]} 1... f5 {[%clk 0:02:59.5]} 2. b3 {[%clk 0:02:59.4]}
2... Nf6 {[%clk 0:02:59.6]} 3. Bb2 {[%clk 0:02:59.6]} 3... e6 {[%clk 0:02:54.8]}
4. f4 {[%clk 0:02:59.5]} 4... Be7 {[%clk 0:02:50.7]} 5. Nf3 {[%clk 0:02:59.6]}
5... O-O {[%clk 0:02:50.1]} 6. g3 {[%clk 0:02:56.3]} 6... d6 {[%clk 0:02:50]} 7.
Bg2 {[%clk 0:02:55.9]} 7... Nc6 {[%clk 0:02:49.2]} 8. O-O {[%clk 0:02:53.2]}
8... Bd7 {[%clk 0:02:43.4]} 9. d3 {[%clk 0:02:48.9]} 9... Rb8 {[%clk 0:02:41.3]}
10. a4 {[%clk 0:02:44.9]} 10... Ng4 {[%clk 0:02:40.6]} 11. Qd2 {[%clk
0:02:41.7]} 11... Bf6 {[%clk 0:02:40]} 12. d4 {[%clk 0:02:14.6]} 12... a5 {[%clk
0:02:30.2]} 13. h3 {[%clk 0:02:14.8]} 13... Nh6 {[%clk 0:02:27.1]} 14. d5 {[%clk
0:01:43.2]} 14... Bxb2 {[%clk 0:02:19.2]} 15. Qxb2 {[%clk 0:01:43.1]} 15... exd5
{[%clk 0:02:16.1]} 16. cxd5 {[%clk 0:01:43.3]} 16... Nb4 {[%clk 0:02:16.2]} 17.
Ng5 {[%clk 0:01:41]} 17... Qe7 {[%clk 0:02:09.2]} 18. Nc3 {[%clk 0:01:13.4]}
18... Nf7 {[%clk 0:01:52.6]} 19. h4 {[%clk 0:00:56.6]} 19... h6 {[%clk
0:01:50.9]} 20. Nxf7 {[%clk 0:00:50.8]} 20... Qe3+ {[%clk 0:01:50.2]} 21. Kh2
{[%clk 0:00:49.1]} 21... Rxf7 {[%clk 0:01:50.5]} 22. Rf3 {[%clk 0:00:49.1]}
22... Qd4 {[%clk 0:01:39.4]} 23. Rd1 {[%clk 0:00:44.9]} 23... Qf6 {[%clk
0:01:39.1]} 24. Qd2 {[%clk 0:00:31.1]} 24... Re8 {[%clk 0:01:36.6]} 25. Re3
{[%clk 0:00:25.5]} 25... Rxe3 {[%clk 0:01:34.7]} 26. Qxe3 {[%clk 0:00:25.8]}
26... Re7 {[%clk 0:01:35.2]} 27. Qd4 {[%clk 0:00:20.6]} 27... Qxd4 {[%clk
0:01:08.2]} 28. Rxd4 {[%clk 0:00:20.3]} 28... c5 {[%clk 0:01:08.8]} 29. dxc6
{[%clk 0:00:20.1]} 29... Bxc6 {[%clk 0:01:07.9]} 30. Bxc6 {[%clk 0:00:19.1]}
30... Nxc6 {[%clk 0:01:03.3]} 31. Rxd6 {[%clk 0:00:19]} 31... Re3 {[%clk
0:01:03.3]} 32. Nd5 {[%clk 0:00:15.7]} 32... Rxe2+ {[%clk 0:01:01.2]} 33. Kh3
{[%clk 0:00:15.6]} 33... Rb2 {[%clk 0:00:53.1]} 34. Rd7 {[%clk 0:00:03.9]} 34...
Rxb3 {[%clk 0:00:52.2]} 35. Rc7 {[%clk 0:00:03.7]} 35... Kh7 {[%clk 0:00:48.7]}
36. h5 {[%clk 0:00:02.3]} 36... Kg8 {[%clk 0:00:44.2]} 0-1

[Event "Late-Titled-Tuesday-Blitz-June-04-2024"]
[Site "Chess.com"]
[Date "2024.06.04"]
[Round "10"]
[White "osielchesslover2011"]
[Black "PNEPaul"]
[Result "1-0"]
[WhiteElo "2221"]
[BlackElo "1928"]
[TimeControl "180+1"]
[EndTime "15:54:23 PDT"]
[Termination "osielchesslover2011 won on time"]

1. e4 {[%clk 0:03:00.9]} 1... e5 {[%clk 0:02:59.3]} 2. Nf3 {[%clk 0:02:56.9]}
2... Nc6 {[%clk 0:02:59.2]} 3. Bc4 {[%clk 0:02:56]} 3... Be7 {[%clk 0:02:59.2]}
4. Nc3 {[%clk 0:02:53.6]} 4... Nf6 {[%clk 0:02:59]} 5. Nd5 {[%clk 0:02:53.4]}
5... O-O {[%clk 0:02:58.2]} 6. d3 {[%clk 0:02:49.7]} 6... h6 {[%clk 0:02:57.3]}
7. O-O {[%clk 0:02:48.8]} 7... d6 {[%clk 0:02:57.4]} 8. c3 {[%clk 0:02:48]} 8...
Bg4 {[%clk 0:02:56.3]} 9. h3 {[%clk 0:02:47.1]} 9... Bh5 {[%clk 0:02:50.7]} 10.
g4 {[%clk 0:02:47]} 10... Nxg4 {[%clk 0:02:50.7]} 11. hxg4 {[%clk 0:02:43.5]}
11... Bxg4 {[%clk 0:02:50.8]} 12. Ne3 {[%clk 0:02:38.8]} 12... Bh5 {[%clk
0:02:19.9]} 13. d4 {[%clk 0:02:36.4]} 13... Bg5 {[%clk 0:02:11.6]} 14. Be2
{[%clk 0:02:32.1]} 14... Bf4 {[%clk 0:02:03]} 15. Ng2 {[%clk 0:02:22]} 15... g5
{[%clk 0:01:54.4]} 16. Bxf4 {[%clk 0:02:15.8]} 16... exf4 {[%clk 0:01:53]} 17.
d5 {[%clk 0:02:10.1]} 17... Ne7 {[%clk 0:01:50.9]} 18. Nh2 {[%clk 0:02:03.7]}
18... Bg6 {[%clk 0:01:46.5]} 19. Ng4 {[%clk 0:02:00.9]} 19... f5 {[%clk
0:01:36.8]} 20. Nxh6+ {[%clk 0:01:53.6]} 20... Kg7 {[%clk 0:01:36.8]} 21. Nxf5+
{[%clk 0:01:51.9]} 21... Nxf5 {[%clk 0:01:18.4]} 22. exf5 {[%clk 0:01:48.5]}
22... Bxf5 {[%clk 0:01:16.6]} 23. Bg4 {[%clk 0:01:46.4]} 23... Qf6 {[%clk
0:01:15.1]} 24. Bxf5 {[%clk 0:01:37.2]} 24... Qxf5 {[%clk 0:01:14.1]} 25. Qd4+
{[%clk 0:01:34.7]} 25... Kg8 {[%clk 0:01:03.1]} 26. Rfe1 {[%clk 0:01:33.8]}
26... Qh3 {[%clk 0:00:30.9]} 27. Re7 {[%clk 0:01:25.9]} 27... Rf7 {[%clk
0:00:26.7]} 28. Rae1 {[%clk 0:01:05.9]} 28... Raf8 {[%clk 0:00:20.8]} 29. Rxf7
{[%clk 0:01:04.2]} 29... Kxf7 {[%clk 0:00:18.9]} 30. Re6 {[%clk 0:00:40.1]}
30... Qg4 {[%clk 0:00:03]} 31. Qf6+ {[%clk 0:00:32.5]} 1-0

[Event "Late-Titled-Tuesday-Blitz-June-04-2024"]
[Site "Chess.com"]
[Date "2024.06.04"]
[Round "10"]
[White "MaxLeto"]
[Black "talaicito"]
[Result "0-1"]
[WhiteElo "2423"]
[BlackElo "2225"]
[TimeControl "180+1"]
[EndTime "15:54:26 PDT"]
[Termination "talaicito won by checkmate"]

1. g4 {[%clk 0:03:00.9]} 1... e5 {[%clk 0:02:58.8]} 2. Bg2 {[%clk 0:03:01.8]}
2... d5 {[%clk 0:02:58.9]} 3. d4 {[%clk 0:02:53.6]} 3... e4 {[%clk 0:02:51.5]}
4. c4 {[%clk 0:02:53.1]} 4... c6 {[%clk 0:02:49.7]} 5. Nc3 {[%clk 0:02:53.1]}
5... Bxg4 {[%clk 0:02:45.8]} 6. Qb3 {[%clk 0:02:51.7]} 6... Qd7 {[%clk
0:02:29.2]} 7. cxd5 {[%clk 0:02:47.5]} 7... cxd5 {[%clk 0:02:28.6]} 8. Qxd5
{[%clk 0:02:45.7]} 8... Nf6 {[%clk 0:02:22.4]} 9. Qxd7+ {[%clk 0:02:32.6]} 9...
Nbxd7 {[%clk 0:02:23.3]} 10. Nxe4 {[%clk 0:02:32.5]} 10... Nxe4 {[%clk
0:02:20.8]} 11. Bxe4 {[%clk 0:02:33.4]} 11... Bb4+ {[%clk 0:02:20.7]} 12. Bd2
{[%clk 0:02:33.1]} 12... Bxd2+ {[%clk 0:02:19.3]} 13. Kxd2 {[%clk 0:02:34]}
13... O-O-O {[%clk 0:02:18.2]} 14. h3 {[%clk 0:02:27.5]} 14... Nf6 {[%clk
0:02:09.2]} 15. Bd3 {[%clk 0:02:21.4]} 15... Bh5 {[%clk 0:01:48.5]} 16. e3
{[%clk 0:02:19.4]} 16... Rhe8 {[%clk 0:01:38.9]} 17. Ne2 {[%clk 0:02:15.7]}
17... Bxe2 {[%clk 0:01:19.4]} 18. Bxe2 {[%clk 0:02:16.6]} 18... Ne4+ {[%clk
0:01:19.1]} 19. Ke1 {[%clk 0:02:13.2]} 19... Kb8 {[%clk 0:01:14.1]} 20. Rc1
{[%clk 0:02:06.4]} 20... Rc8 {[%clk 0:01:10.3]} 21. Rb1 {[%clk 0:00:19.5]} 21...
Rc2 {[%clk 0:00:46.5]} 22. Rf1 {[%clk 0:00:13.4]} 22... f5 {[%clk 0:00:23.2]}
23. Bd3 {[%clk 0:00:11.1]} 23... Rc7 {[%clk 0:00:20.4]} 24. Ke2 {[%clk 0:00:11]}
24... Rec8 {[%clk 0:00:19.3]} 25. Rg1 {[%clk 0:00:09.7]} 25... g6 {[%clk
0:00:19.3]} 26. h4 {[%clk 0:00:09.7]} 26... a6 {[%clk 0:00:17.4]} 27. h5 {[%clk
0:00:08.3]} 27... Rc2+ {[%clk 0:00:16.8]} 28. Bxc2 {[%clk 0:00:05.7]} 28...
Rxc2+ {[%clk 0:00:17.1]} 29. Kd3 {[%clk 0:00:06.6]} 29... Rxf2 {[%clk
0:00:16.7]} 30. hxg6 {[%clk 0:00:06]} 30... b5 {[%clk 0:00:16.8]} 31. g7 {[%clk
0:00:05.7]} 31... Rd2# {[%clk 0:00:17]} 0-1

[Event "Late-Titled-Tuesday-Blitz-June-04-2024"]
[Site "Chess.com"]
[Date "2024.06.04"]
[Round "10"]
[White "subham777"]
[Black "IMRosen"]
[Result "0-1"]
[WhiteElo "2575"]
[BlackElo "2751"]
[TimeControl "180+1"]
[EndTime "15:54:29 PDT"]
[Termination "IMRosen won on time"]

1. e4 {[%clk 0:03:00.9]} 1... c5 {[%clk 0:02:59.8]} 2. Nf3 {[%clk 0:03:00]} 2...
Nc6 {[%clk 0:03:00.3]} 3. Bb5 {[%clk 0:02:59.3]} 3... e6 {[%clk 0:02:58.3]} 4.
O-O {[%clk 0:02:58.9]} 4... Nge7 {[%clk 0:02:57.9]} 5. c3 {[%clk 0:02:59]} 5...
a6 {[%clk 0:02:58.3]} 6. Ba4 {[%clk 0:02:57.7]} 6... b5 {[%clk 0:02:57.2]} 7.
Bc2 {[%clk 0:02:58.1]} 7... d5 {[%clk 0:02:57.3]} 8. exd5 {[%clk 0:02:56.6]}
8... Nxd5 {[%clk 0:02:50.6]} 9. a4 {[%clk 0:02:53.1]} 9... Bb7 {[%clk
0:02:50.3]} 10. axb5 {[%clk 0:02:52.9]} 10... axb5 {[%clk 0:02:51.2]} 11. Rxa8
{[%clk 0:02:52.7]} 11... Qxa8 {[%clk 0:02:51.4]} 12. Na3 {[%clk 0:02:51.8]}
12... Nc7 {[%clk 0:02:48.1]} 13. d4 {[%clk 0:02:50.5]} 13... cxd4 {[%clk
0:02:38.7]} 14. Bf4 {[%clk 0:02:15.1]} 14... Bxa3 {[%clk 0:02:17.8]} 15. Bxc7
{[%clk 0:01:37.2]} 15... Bxb2 {[%clk 0:02:02.6]} 16. Nxd4 {[%clk 0:01:32.2]}
16... Nxd4 {[%clk 0:01:46.5]} 17. Qxd4 {[%clk 0:01:32.6]} 17... O-O {[%clk
0:01:46.1]} 18. Rb1 {[%clk 0:00:58.6]} 18... Rc8 {[%clk 0:00:54.4]} 19. Rxb2
{[%clk 0:00:22.1]} 19... Rxc7 {[%clk 0:00:47.3]} 20. Rxb5 {[%clk 0:00:22]} 20...
Qc8 {[%clk 0:00:47.6]} 21. Bxh7+ {[%clk 0:00:14.1]} 21... Kf8 {[%clk 0:00:22.7]}
22. Qb4+ {[%clk 0:00:09.8]} 22... Ke8 {[%clk 0:00:19]} 23. h3 {[%clk 0:00:06.2]}
23... g6 {[%clk 0:00:12.1]} 24. Qd4 {[%clk 0:00:05.3]} 24... Rxc3 {[%clk
0:00:06.9]} 25. Qh8+ {[%clk 0:00:01.6]} 25... Ke7 {[%clk 0:00:07]} 26. Qxc8
{[%clk 0:00:01.1]} 26... Bxc8 {[%clk 0:00:07.9]} 0-1

[Event "Late-Titled-Tuesday-Blitz-June-04-2024"]
[Site "Chess.com"]
[Date "2024.06.04"]
[Round "10"]
[White "gabduschew"]
[Black "arnoldpetra"]
[Result "0-1"]
[WhiteElo "2327"]
[BlackElo "2485"]
[TimeControl "180+1"]
[EndTime "15:54:29 PDT"]
[Termination "arnoldpetra won on time"]

1. e4 {[%clk 0:03:00.9]} 1... d6 {[%clk 0:03:00.9]} 2. d4 {[%clk 0:02:50.9]}
2... c6 {[%clk 0:03:01.8]} 3. Nc3 {[%clk 0:02:45.3]} 3... g6 {[%clk 0:03:02.7]}
4. f4 {[%clk 0:02:45.3]} 4... Bg7 {[%clk 0:03:03.4]} 5. e5 {[%clk 0:02:45.6]}
5... Qb6 {[%clk 0:02:48.6]} 6. Nf3 {[%clk 0:02:37.1]} 6... Bg4 {[%clk
0:02:48.4]} 7. Be2 {[%clk 0:02:35.6]} 7... Nd7 {[%clk 0:02:48.1]} 8. Na4 {[%clk
0:02:29]} 8... Qa5+ {[%clk 0:02:47.3]} 9. c3 {[%clk 0:02:25.9]} 9... b5 {[%clk
0:02:47.2]} 10. Ng5 {[%clk 0:01:57.2]} 10... Bxe2 {[%clk 0:02:41.6]} 11. Qxe2
{[%clk 0:01:58.1]} 11... bxa4 {[%clk 0:02:38.2]} 12. e6 {[%clk 0:01:58.3]} 12...
fxe6 {[%clk 0:02:27.1]} 13. Nxe6 {[%clk 0:01:55.5]} 13... Bf6 {[%clk 0:02:01.3]}
14. O-O {[%clk 0:01:41.6]} 14... Nf8 {[%clk 0:01:49.2]} 15. Nxf8 {[%clk
0:01:20.9]} 15... Kxf8 {[%clk 0:01:46.7]} 16. f5 {[%clk 0:01:17.2]} 16... g5
{[%clk 0:01:10.4]} 17. Qh5 {[%clk 0:01:01.4]} 17... Qd5 {[%clk 0:00:53.2]} 18.
Bxg5 {[%clk 0:00:54.2]} 18... Qf7 {[%clk 0:00:51.5]} 19. Qh4 {[%clk 0:00:32.5]}
19... Bxg5 {[%clk 0:00:51.1]} 20. Qxg5 {[%clk 0:00:33]} 20... Nf6 {[%clk
0:00:51.6]} 21. g3 {[%clk 0:00:23.3]} 21... Rg8 {[%clk 0:00:51.3]} 22. Qf4
{[%clk 0:00:16.8]} 22... Rg4 {[%clk 0:00:47]} 23. Qf3 {[%clk 0:00:16.9]} 23...
Qd5 {[%clk 0:00:46.3]} 24. Qe3 {[%clk 0:00:15.9]} 24... h5 {[%clk 0:00:35.8]}
25. Rae1 {[%clk 0:00:14.9]} 25... Re8 {[%clk 0:00:34.3]} 26. Qh6+ {[%clk
0:00:14.2]} 26... Kg8 {[%clk 0:00:24.2]} 27. Re6 {[%clk 0:00:06.4]} 27... h4
{[%clk 0:00:20.2]} 28. Rxf6 {[%clk 0:00:02]} 28... exf6 {[%clk 0:00:18.6]} 29.
Qxf6 {[%clk 0:00:01.3]} 29... Qe4 {[%clk 0:00:17.4]} 0-1

[Event "Late-Titled-Tuesday-Blitz-June-04-2024"]
[Site "Chess.com"]
[Date "2024.06.04"]
[Round "10"]
[White "rasmussvane"]
[Black "JSPrepz"]
[Result "1/2-1/2"]
[WhiteElo "2920"]
[BlackElo "2846"]
[TimeControl "180+1"]
[EndTime "15:54:30 PDT"]
[Termination "Game drawn by repetition"]

1. Nf3 {[%clk 0:03:00.9]} 1... c5 {[%clk 0:02:57.8]} 2. c4 {[%clk 0:02:58.6]}
2... g6 {[%clk 0:02:58.1]} 3. d4 {[%clk 0:02:56.1]} 3... Bg7 {[%clk 0:02:58.5]}
4. d5 {[%clk 0:02:54.7]} 4... b5 {[%clk 0:02:58]} 5. e4 {[%clk 0:02:37.9]} 5...
bxc4 {[%clk 0:02:56.6]} 6. Bxc4 {[%clk 0:02:38.8]} 6... d6 {[%clk 0:02:56.8]} 7.
O-O {[%clk 0:02:38.1]} 7... Nd7 {[%clk 0:02:56.8]} 8. Nc3 {[%clk 0:02:35.6]}
8... Ngf6 {[%clk 0:02:56.7]} 9. h3 {[%clk 0:02:32.4]} 9... O-O {[%clk
0:02:56.4]} 10. Re1 {[%clk 0:02:31.7]} 10... Rb8 {[%clk 0:02:56.2]} 11. Qc2
{[%clk 0:02:29.9]} 11... Nb6 {[%clk 0:02:52.8]} 12. Bf1 {[%clk 0:02:26.6]} 12...
Nfd7 {[%clk 0:02:52]} 13. Bf4 {[%clk 0:02:15.6]} 13... Bb7 {[%clk 0:02:51.6]}
14. Rad1 {[%clk 0:02:14.7]} 14... c4 {[%clk 0:02:35.8]} 15. Qd2 {[%clk
0:01:46.3]} 15... Nc5 {[%clk 0:02:29.1]} 16. Bh6 {[%clk 0:01:45.3]} 16... Re8
{[%clk 0:02:04.1]} 17. Bxg7 {[%clk 0:01:44.8]} 17... Kxg7 {[%clk 0:02:05]} 18.
Qd4+ {[%clk 0:01:24.7]} 18... Kg8 {[%clk 0:02:04.9]} 19. e5 {[%clk 0:01:25.3]}
19... Nd3 {[%clk 0:01:54.9]} 20. Bxd3 {[%clk 0:01:22.5]} 20... cxd3 {[%clk
0:01:55.8]} 21. e6 {[%clk 0:01:12.9]} 21... f6 {[%clk 0:01:49.2]} 22. Rxd3
{[%clk 0:01:13]} 22... Rc8 {[%clk 0:01:48.5]} 23. b3 {[%clk 0:01:09.9]} 23...
Qc7 {[%clk 0:01:46.9]} 24. Ne4 {[%clk 0:01:06]} 24... Bxd5 {[%clk 0:01:40]} 25.
Ng3 {[%clk 0:00:58.1]} 25... Qc2 {[%clk 0:01:28.4]} 26. Nh4 {[%clk 0:00:52.6]}
26... Kh8 {[%clk 0:01:12.5]} 27. Rde3 {[%clk 0:00:33.3]} 27... Ba8 {[%clk
0:00:56.1]} 28. R3e2 {[%clk 0:00:27.1]} 28... Qc6 {[%clk 0:00:53.9]} 29. Re3
{[%clk 0:00:21.6]} 29... Nd5 {[%clk 0:00:53.1]} 30. Nxg6+ {[%clk 0:00:17.9]}
30... hxg6 {[%clk 0:00:51.2]} 31. Qh4+ {[%clk 0:00:18.2]} 31... Kg8 {[%clk
0:00:44.7]} 32. Qh6 {[%clk 0:00:15.4]} 32... Nxe3 {[%clk 0:00:25.7]} 33. Qxg6+
{[%clk 0:00:15.6]} 33... Kh8 {[%clk 0:00:26.3]} 34. Qh6+ {[%clk 0:00:16.2]}
34... Kg8 {[%clk 0:00:27]} 35. Qg6+ {[%clk 0:00:14.4]} 35... Kh8 {[%clk
0:00:27.5]} 36. Qh6+ {[%clk 0:00:04.4]} 36... Kg8 {[%clk 0:00:27]} 37. Qg6+
{[%clk 0:00:03.2]} 1/2-1/2

[Event "Late-Titled-Tuesday-Blitz-June-04-2024"]
[Site "Chess.com"]
[Date "2024.06.04"]
[Round "10"]
[White "Zampronha1971"]
[Black "The_Sherman_Variation"]
[Result "0-1"]
[WhiteElo "2426"]
[BlackElo "2601"]
[TimeControl "180+1"]
[EndTime "15:54:32 PDT"]
[Termination "The_Sherman_Variation won on time"]

1. e4 {[%clk 0:03:00.9]} 1... b6 {[%clk 0:02:59.1]} 2. d4 {[%clk 0:03:00]} 2...
Bb7 {[%clk 0:02:58.4]} 3. Bd3 {[%clk 0:03:00.4]} 3... e6 {[%clk 0:02:56.6]} 4.
Nf3 {[%clk 0:02:59.9]} 4... Nf6 {[%clk 0:02:55.1]} 5. Nbd2 {[%clk 0:02:59.7]}
5... d5 {[%clk 0:02:54.6]} 6. e5 {[%clk 0:02:58.5]} 6... Ne4 {[%clk 0:02:55.2]}
7. O-O {[%clk 0:02:55.9]} 7... Nxd2 {[%clk 0:02:54.4]} 8. Bxd2 {[%clk
0:02:54.7]} 8... h6 {[%clk 0:02:52.4]} 9. Re1 {[%clk 0:02:53]} 9... Be7 {[%clk
0:02:51.7]} 10. c3 {[%clk 0:02:52.3]} 10... c5 {[%clk 0:02:51.1]} 11. Rc1 {[%clk
0:02:51.7]} 11... Nd7 {[%clk 0:02:49.2]} 12. Qe2 {[%clk 0:02:50.2]} 12... Qc7
{[%clk 0:02:46.6]} 13. Qe3 {[%clk 0:02:46.2]} 13... O-O-O {[%clk 0:02:35.8]} 14.
a4 {[%clk 0:02:44.1]} 14... c4 {[%clk 0:02:33.5]} 15. Bc2 {[%clk 0:02:43.6]}
15... g5 {[%clk 0:02:32.6]} 16. Kh1 {[%clk 0:02:28.7]} 16... Rdg8 {[%clk
0:02:28.9]} 17. b4 {[%clk 0:02:15.7]} 17... g4 {[%clk 0:02:24.1]} 18. Ng1 {[%clk
0:02:15.5]} 18... h5 {[%clk 0:02:24]} 19. b5 {[%clk 0:02:13.2]} 19... h4 {[%clk
0:02:17.9]} 20. a5 {[%clk 0:02:09.6]} 20... g3 {[%clk 0:02:07.3]} 21. fxg3
{[%clk 0:02:08.9]} 21... hxg3 {[%clk 0:02:08.2]} 22. h3 {[%clk 0:02:09.5]} 22...
Kb8 {[%clk 0:02:07.2]} 23. axb6 {[%clk 0:02:07.9]} 23... axb6 {[%clk 0:02:04.6]}
24. Ra1 {[%clk 0:02:08.5]} 24... f6 {[%clk 0:02:00.6]} 25. exf6 {[%clk
0:02:07.6]} 25... Nxf6 {[%clk 0:02:01.5]} 26. Qxe6 {[%clk 0:02:05.1]} 26... Ng4
{[%clk 0:01:56.3]} 27. Nf3 {[%clk 0:01:43]} 27... Bd6 {[%clk 0:01:39.2]} 28. Bf5
{[%clk 0:01:20.5]} 28... Nf2+ {[%clk 0:01:30.1]} 29. Kg1 {[%clk 0:01:18.8]}
29... Rf8 {[%clk 0:01:15.9]} 30. Qd7 {[%clk 0:01:09.9]} 30... Qxd7 {[%clk
0:01:09.5]} 31. Bxd7 {[%clk 0:01:10.8]} 31... Kc7 {[%clk 0:01:09.2]} 32. Bc6
{[%clk 0:00:40.9]} 32... Bxc6 {[%clk 0:01:07.5]} 33. bxc6 {[%clk 0:00:41.8]}
33... Nxh3+ {[%clk 0:01:05.8]} 34. gxh3 {[%clk 0:00:37.1]} 34... Rxf3 {[%clk
0:01:05.7]} 35. Re3 {[%clk 0:00:21.7]} 35... Rxe3 {[%clk 0:01:00.4]} 36. Bxe3
{[%clk 0:00:21.9]} 36... Rxh3 {[%clk 0:01:01]} 37. Rf1 {[%clk 0:00:18]} 37... g2
{[%clk 0:00:53.3]} 38. Rf7+ {[%clk 0:00:17.3]} 38... Kxc6 {[%clk 0:00:53.2]} 39.
Bf2 {[%clk 0:00:14.5]} 39... Rxc3 {[%clk 0:00:52.3]} 40. Kxg2 {[%clk 0:00:14]}
40... b5 {[%clk 0:00:52.5]} 41. Rf6 {[%clk 0:00:14.3]} 41... b4 {[%clk 0:00:50]}
42. Kf1 {[%clk 0:00:12.8]} 42... b3 {[%clk 0:00:48.9]} 0-1